[Event "ESP-ch Teams Primera 2022"]
[Site "Sanxenxo Pontevedra"]
[Date "2022.09.22"]
[Round "6.6"]
[White "Dorado Meijide, Andrea"]
[Black "Buiza Prieto, Eihartze"]
[Result "0-1"]
[ECO "C90"]
[WhiteElo "1801"]
[BlackElo "2080"]
[Annotator "TA"]
[PlyCount "121"]
[EventDate "2022.09.17"]
[EventType "team-tourn"]
[EventCountry "ESP"]
[SourceTitle "playchess.com"]
[Source "ChessBase"]
[SourceQuality "1"]
[TimeControl "5400+30"]

{[%evp 24,121,12,0,14,0,29,27,16,0,0,0,0,0,31,31,33,35,68,25,28,24,9,14,42,33,46,-16,16,-58,-21,-38,-17,-74,-31,-82,0,0,0,7,41,35,50,0,0,0,20,0,0,0,0,0,0,-1,-1,-11,0,0,0,-6,-6,-15,-3,-29,-29,-30,-29,-35,-29,-36,-18,-18,-21,-22,-22,-22,0,-29,0,0,0,-12,-12,-19,-19,-19,-19,-56,-28,-61,-20,-43,-42,-42,-42,-51,-42,-42,-38,-42]} 1. e4 e5 2. Nf3 Nc6 3. Bb5 {[%cal Bf1b5,Bb5a4,Ba4b3][%mdl 32]} a6 4. Ba4 Nf6 5. d3 b5 6. Bb3 Be7 7. c3 d6 8. O-O O-O 9. Re1 Na5 10. Bc2 c5 11. Nbd2 Nc6 12. Nf1 Re8 {12...h6 injects fresh life into this line.} 13. Ng3 Bf8 {C90: Closed Ruy Lopez with 7...d6: Early deviations.} 14. a4 Rb8 15. axb5 axb5 {White has an edge.} 16. Bg5 h6 17. Bxf6 Qxf6 18. Bb3 {[#]} g6 $146 ({Predecessor:} 18... Be6 19. Ra6 Rec8 20. Bd5 Bd7 21. Qb3 g6 22. d4 exd4 23. e5 Qg7 24. cxd4 c4 {½-½ (43) David,A (2574)-Stefansson,H (2521) Rhodes 2013}) 19. Nf1 Qd8 20. Ne3 Ne7 21. Qd2 Bg7 22. h3 Rf8 23. Ra7 Kh7 24. Rea1 Bb7 25. c4 (25. h4 $14) 25... f5 26. Nd5 (26. cxb5 $11 Nc8 27. R7a4) 26... bxc4 27. Bxc4 Nxd5 28. exd5 (28. Bxd5 $11 Bxd5 29. exd5) 28... Qb6 29. Qa5 (29. Qd1 $15) 29... Qxa5 (29... Qxb2 $17 {Threatens to win with ...e4.} 30. Qc7 e4) 30. R1xa5 $11 Bc8 31. b3 g5 32. Rc7 {[#] And now Raa7 would win.} Rb7 33. Ra7 (33. Rc6 $1 $14) 33... Rxa7 34. Rxa7 Kg6 35. Nd2 Rf7 36. Ra8 Bd7 37. Ra6 Bf8 38. Nf3 {[#] aiming for Nxe5+.} Kf6 39. Kf1 Be7 40. Ra7 Be8 41. Ra8 Rf8 42. Nd2 h5 43. Ke2 (43. g4 $5) 43... Bf7 44. Ra6 {[%cal Og2g4]} h4 45. f3 Be8 46. Nb1 Bd7 47. Nc3 Rb8 48. Ra7 Be8 49. Ra6 Kf7 50. Nd1 Bd7 51. Ra7 Ke8 52. Ne3 Bd8 53. Ra6 Bc7 54. Ra7 Kd8 55. Ra6 Kc8 56. Ra7 Bb6 57. Ra3 Kb7 {Black is slightly better.} 58. Ba6+ Kc7 59. Bc4 Re8 60. Ra1 Rg8 61. Kf2 {Weighted Error Value: White=0.16 (very precise) /Black=0.14 (very precise)} 0-1

[Event "ESP-ch Teams Primera 2022"]
[Site "Sanxenxo Pontevedra"]
[Date "2022.09.22"]
[Round "6.7"]
[White "Bjerre, Jonas Buhl"]
[Black "Espinosa Aranda, Angel"]
[Result "1-0"]
[ECO "B36"]
[WhiteElo "2598"]
[BlackElo "2428"]
[Annotator "TA"]
[PlyCount "105"]
[EventDate "2022.09.17"]
[EventType "team-tourn"]
[EventCountry "ESP"]
[SourceTitle "playchess.com"]
[Source "ChessBase"]
[SourceQuality "1"]
[TimeControl "5400+30"]

{[%evp 18,105,45,36,50,35,36,22,34,36,32,32,30,37,26,23,37,15,34,39,62,34,47,0,58,8,0,0,0,0,0,-19,27,0,0,-38,-43,-229,27,0,0,0,0,0,0,0,36,0,76,2,74,75,84,102,100,75,79,95,78,87,236,236,236,106,106,106,114,113,133,125,520,496,225,214,1054,1045,952,643,12842,6428,29971,29972,29978,29979,29979,29980,29980,29981,29980,29981]} 1. e4 {[%emt 0:00:10]} c5 {[%emt 0:00:20]} 2. Nf3 {[%emt 0:00:09]} g6 {[%emt 0:00:25]} 3. d4 {[%emt 0:02:15]} cxd4 {[%emt 0:00:12]} 4. Nxd4 {[%emt 0:00:14]} Nc6 {[%emt 0:00:21]} 5. c4 {[%emt 0:00:54]} Nf6 {[%emt 0:01:09]} 6. Nc3 {[%emt 0:00:25]} Nxd4 {[%emt 0:00:28]} 7. Qxd4 {[%emt 0:00:07]} d6 {[%emt 0:00:03]} 8. Be2 {[%emt 0:03:35]} Bg7 {[%emt 0:00:17]} 9. Be3 {[%emt 0:04:09]} O-O {[%emt 0:00:54]} 10. Qd2 {[%emt 0:00:12]} a5 {[%emt 0:01:47] B36: Sicilian: Maroczy Bind: Gurgenidze System.} 11. Rd1 {[%emt 0:02:52]} a4 {[%emt 0:01:36]} 12. O-O {[%emt 0:01:35]} Qa5 {[%emt 0:01:29] The position is equal.} 13. Bd4 {[%emt 0:01:28]} Bd7 {[%emt 0:04:18]} 14. Qe3 {[%emt 0:14:03]} Bc6 {[%emt 0:06:34]} 15. Nd5 {[%emt 0:04:15]} Bxd5 {[%emt 0:03:27]} 16. exd5 {[%emt 0:00:33]} Rfe8 {[%emt 0:00:16]} 17. Rfe1 $5 {[%emt 0:06:01][%mdl 4] [#] Leaves trodden paths.} Rac8 $146 {[%emt 0:09:30]} ({Predecessor:} 17... Nd7 18. Bxg7 Kxg7 19. Bf1 Qc5 20. Rd4 Nf6 21. Qd2 Qa5 22. Qd1 Qb4 23. Re2 Rac8 24. Rc2 Rc5 25. Rcd2 Rec8 26. Qe2 Qb6 27. Rf4 R5c7 28. h3 {½-½ (28) Ekstroem,R (2376)-Cebalo,M (2303) Graechen 2017}) 18. Qa3 {[%emt 0:08:14]} Qa8 {[%emt 0:14:22]} 19. Rc1 {[%emt 0:14:23] White is more active.} Bh6 {[%emt 0:09:36]} 20. Rcd1 {[%emt 0:07:07]} Bg7 {[%emt 0:00:58]} 21. Qb4 {[%emt 0:00:32]} (21. h3 $14) 21... b5 $11 {[%emt 0:18:47]} 22. Qxb5 {[%emt 0:07:52]} Rb8 {[%emt 0:00:11]} 23. Qc6 {[%emt 0:00:14]} Qa5 $1 {[%emt 0:00:04]} 24. c5 {[%emt 0:02:18]} dxc5 {[%emt 0:03:45]} (24... Ne4 $142 25. Bxg7 Kxg7 26. cxd6 Rec8) 25. Bc3 {[%emt 0:02:12] A strong pair of Bishops.} (25. Bxc5 $2 Rec8 26. Bb6 Qxb6 $19) 25... Qa7 {[%emt 0:00:26]} 26. d6 {[%emt 0:05:21]} exd6 $1 {[%emt 0:04:44]} 27. Rxd6 $2 {[%emt 0:00:23] [#]} (27. Bf3 $15) 27... Rbc8 $2 {[%emt 0:00:43]} (27... a3 $1 $19 {[%cal Ra3b2]} 28. b3 (28. Bxf6 $2 Bxf6 29. b3 Bc3 $19) (28. Rxf6 $2 axb2 29. Bxb2 Qxa2 $19) 28... Ne4 29. Bxg7 (29. Rd7 $2 Qxd7 30. Qxd7 Nxc3 $19) 29... Nxd6) 28. Qa6 $36 {[%emt 0:06:20][%mdl 2048] White is more active.} (28. Qf3 {with more complications.} Ne4 29. Ra6 Qd7 30. Bxg7 Kxg7 31. Rd1) 28... Qxa6 {[%emt 0:02:37]} 29. Rxa6 {[%emt 0:01:18]} Nd5 {[%emt 0:02:31]} 30. Bxg7 {[%emt 0:00:08]} Kxg7 {[%emt 0:00:03]} 31. Kf1 {[%emt 0:00:46]} c4 {[%emt 0:03:53]} (31... Rb8 $5 {[%cal Rb8b2]}) 32. Bf3 {[%emt 0:02:20]} Rxe1+ {[%emt 0:03:07]} 33. Kxe1 {[%emt 0:00:04][%mdl 4096] Endgame KRB-KRN} Nb4 {[%emt 0:00:03]} (33... c3 $1 $11 {keeps the balance.} 34. bxc3 (34. Bxd5 $2 c2 $19) 34... Nxc3) 34. Rxa4 $16 {[%emt 0:02:03]} Nd3+ {[%emt 0:00:05]} 35. Kd2 {[%emt 0:00:09] aiming for Kc3.} Nxb2 {[%emt 0:00:03]} 36. Ra3 {[%emt 0:00:38]} Nd3 {[%emt 0:00:08]} 37. Kc3 {[%emt 0:00:50]} Nxf2 {[%emt 0:01:02]} 38. Ra4 {[%emt 0:00:50]} Nd3 {[%emt 0:02:19]} (38... Re8 $16) 39. Rxc4 $18 {[%emt 0:00:38]} Nc5 {[%emt 0:00:05]} 40. Kc2 {[%emt 0:01:40]} (40. Bd5 $18 {is the precise move to win.}) 40... Kf6 $16 41. a4 {[%emt 0:00:45][%cal Ba2a4,Ba4a5,Ba5a6,Ba6a7][%mdl 32]} Ke7 {[%emt 0:06:10]} 42. a5 {[%emt 0:00:06]} Kd7 {[%emt 0:00:48]} 43. Kc3 {[%emt 0:00:43]} Ne6 $2 {[%emt 0:01:13][%mdl 8192]} (43... Rc7 $16 {is tougher.}) 44. a6 $18 {[%emt 0:00:38]} Nc7 {[%emt 0:00:34]} 45. Bb7 {[%emt 0:00:46]} Nb5+ $2 {[%emt 0:00:05]} (45... Rb8 46. Rb4 Re8) 46. Kb4 {[%emt 0:00:29]} Rxc4+ {[%emt 0:00:06]} 47. Kxc4 {[%emt 0:00:26] KB-KN} Nd6+ {[%emt 0:00:20]} 48. Kd5 {[%emt 0:00:14] White threatens a7 and mate.} Kc7 {[%emt 0:00:40]} 49. a7 {[%emt 0:00:49] White mates.} Kxb7 {[%emt 0:01:07]} 50. Kxd6 {[%emt 0:00:04]} f5 {[%emt 0:00:13]} 51. Ke5 {[%emt 0:00:42]} Kxa7 {[%emt 0:00:23]} 52. Kf6 {[%emt 0:00:05]} f4 {[%emt 0:00:18]} 53. h4 {[%emt 0:01:08] Weighted Error Value: White=0.27 (precise) /Black=0.45} 1-0

[Event "ESP-ch Teams Primera 2022"]
[Site "Sanxenxo Pontevedra"]
[Date "2022.09.22"]
[Round "6.8"]
[White "Rubio Mejia, Luis Ignacio"]
[Black "Andersen, Mads"]
[Result "1/2-1/2"]
[ECO "A37"]
[WhiteElo "2399"]
[BlackElo "2597"]
[Annotator "TA"]
[PlyCount "66"]
[EventDate "2022.09.17"]
[EventType "team-tourn"]
[EventCountry "ESP"]
[SourceTitle "playchess.com"]
[Source "ChessBase"]
[SourceQuality "1"]
[TimeControl "5400+30"]

{[%evp 18,66,22,9,13,15,20,14,24,2,31,29,43,42,42,46,48,16,16,6,6,8,8,12,12,0,0,0,0,0,0,0,0,0,0,0,0,0,0,0,0,0,0,0,0,0,0,0,0,0,0]} 1. c4 c5 2. g3 g6 3. Bg2 Bg7 4. Nc3 Nc6 5. Nf3 d6 6. O-O Nf6 7. d4 O-O 8. dxc5 dxc5 9. Be3 Be6 10. Ng5 Qxd1 {E65: King's Indian: Fianchetto: 6...c5 7 0-0 without d5 by White.} 11. Rfxd1 Bxc4 12. Bxc5 Rfd8 13. Rac1 {[#] With the idea Bxc6.} h6 $146 ({Predecessor:} 13... Rxd1+ 14. Rxd1 h6 15. Nf3 Rc8 16. Nd4 Nxd4 17. Bxd4 b6 18. Be5 Be6 19. Bb7 Rc5 {½-½ (31) King,D (2545)-Pekarek,A (2475) Germany 1990}) 14. Bxc6 (14. Rxd8+ {seems wilder.} Rxd8 15. Bxc6 bxc6 16. Bxe7 Rb8 17. Nce4) 14... bxc6 15. Rxd8+ Rxd8 16. Bxe7 Rb8 17. Bxf6 Bxf6 {The position is equal.} 18. Nce4 {[%csl LRc4,LRf6]} Bxg5 19. Rxc4 {Threatens to win with b3.} Rxb2 20. Nxg5 hxg5 21. Rxc6 Rxa2 $11 {[%mdl 4096] Endgame KR-KR} 22. e4 a5 {[%cal Ba7a5,Ba5a4,Ba4a3,Ba3a2][%mdl 32]} 23. Ra6 Kg7 24. e5 a4 25. Ra7 Kf8 26. h3 a3 27. Kg2 Ra1 28. Kh2 a2 29. Kg2 Ke8 30. Kf3 Kf8 31. Kg4 Re1 $1 32. Rxa2 Rxe5 33. Kf3 Kg7 {Weighted Error Value: White=0.05 (flawless) /Black=0.02 (flawless)} 1/2-1/2

[Event "ESP-ch Teams Primera 2022"]
[Site "Sanxenxo Pontevedra"]
[Date "2022.09.22"]
[Round "6.9"]
[White "Sousa, Andre Ventura"]
[Black "Almagro Llamas, Pablo"]
[Result "1/2-1/2"]
[ECO "A11"]
[WhiteElo "2449"]
[BlackElo "2407"]
[Annotator "TA"]
[PlyCount "158"]
[EventDate "2022.09.17"]
[EventType "team-tourn"]
[EventCountry "ESP"]
[SourceTitle "playchess.com"]
[Source "ChessBase"]
[SourceQuality "1"]
[TimeControl "5400+30"]

{[%evp 15,158,22,33,16,14,-2,16,0,14,-16,0,0,8,2,41,36,69,62,136,138,131,79,50,53,33,34,148,155,162,155,184,159,167,174,161,140,138,121,124,0,0,0,0,0,0,0,1,0,11,14,11,9,8,8,117,117,117,117,117,117,117,117,117,117,117,117,117,117,117,117,117,117,117,117,117,117,117,117,117,117,117,117,117,117,117,117,117,117,117,68,117,117,117,117,117,117,117,117,117,117,117,117,117,117,117,117,117,117,117,117,117,117,117,117,117,117,117,117,117,117,117,117,117,117,117,117,117,117,117,117,117,53,117,117,117,117,117,117,117,8,8,8,8,8,8]} 1. c4 {[%emt 0:00:03]} c6 {[%emt 0:00:22]} 2. Nf3 {[%emt 0:01:00]} d5 {[%emt 0:00:16]} 3. g3 {[%emt 0:02:04]} Nf6 {[%emt 0:00:53]} 4. Bg2 {[%emt 0:00:03]} g6 {[%emt 0:04:24]} 5. b3 {[%emt 0:01:44]} Bg7 {[%emt 0:00:26]} 6. Bb2 {[%emt 0:00:03]} O-O {[%emt 0:00:21]} 7. O-O {[%emt 0:00:17]} Nbd7 {[%emt 0:17:47]} 8. Qc2 {[%emt 0:09:51]} b6 {[%emt 0:07:05] [#]} 9. Rc1 $146 {[%emt 0:04:44] A11: English Opening: 1...c6.} ({Predecessor:} 9. d4 Bb7 10. Nc3 Qc7 11. Rac1 Rac8 12. Rfd1 e6 13. cxd5 cxd5 14. Qb1 Qb8 15. Ba3 Rfd8 16. Rc2 Ba6 {1-0 (35) Margvelashvili,G (2570)-Kacheishvili,G (2607) ICC INT 2012}) 9... Bb7 {[%emt 0:01:49]} 10. a4 {[%emt 0:06:40][%cal Oa4a5]} a5 {[%emt 0:04:26]} 11. Na3 {[%emt 0:11:58]} Rc8 {[%emt 0:02:36]} 12. Bc3 {[%emt 0:04:09]} Bh6 {[%emt 0:07:44]} 13. e3 {[%emt 0:05:59]} Qc7 {[%emt 0:06:22]} 14. Qb2 {[%emt 0:07:00]} Qb8 {[%emt 0:05:58]} 15. Ne5 {[%emt 0:02:59]} Nc5 {[%emt 0:01:29]} 16. d4 {[%emt 0:05:56]} Ncd7 {[%emt 0:06:40]} ({Black should try} 16... Nce4 $14) 17. Nxd7 $16 {[%emt 0:02:36] White is more active.} Nxd7 {[%emt 0:00:15]} 18. b4 {[%emt 0:03:27]} (18. cxd5 $142 cxd5 19. b4) 18... axb4 {[%emt 0:01:16]} 19. Qxb4 {[%emt 0:00:09]} c5 {[%emt 0:04:02]} 20. dxc5 {[%emt 0:01:00]} Nxc5 {[%emt 0:04:41]} (20... d4 $1 $14 21. Bxb7 (21. Bxd4 Bxg2 22. Kxg2 Qa8+ 23. c6 Nb8 $15) 21... Qxb7 22. exd4 (22. Bxd4 e5 $11) 22... Bxc1 23. Rxc1 Qa6) 21. cxd5 {[%emt 0:01:14]} (21. Bxd5 $6 e6 $11) (21. Qxb6 Nxa4 22. Qb1 Nxc3 23. Rxc3 Bg7 $17) 21... Rfd8 {[%emt 0:01:12]} 22. Qd4 {[%emt 0:06:15][%csl Gc3][%cal Rd4h8]} (22. Qxb6 $2 Nxa4 23. Qd4 Nxc3 24. Rxc3 Bg7 25. Rxc8 Qxc8 $19) 22... f6 {[%emt 0:00:27]} 23. Rab1 {[%emt 0:01:47] Prevents Nb3.} Qa8 {[%emt 0:01:02][%cal Rb7d5]} 24. Nc4 $1 {[%emt 0:00:49]} ({Worse is} 24. Rxb6 Bxd5 25. Bxd5+ Rxd5 $11) 24... Nxa4 {[%emt 0:02:20][%cal Rb7d5]} 25. Nxb6 {[%emt 0:04:53]} Nxb6 {[%emt 0:00:24]} 26. Qxb6 {[%emt 0:02:01]} Bxd5 {[%emt 0:01:09]} 27. Bh3 {[%emt 0:05:34]} (27. Ra1 $16 Bxg2 28. Rxa8 Bxa8 29. Re1) 27... Rc6 $11 {[%emt 0:03:06]} 28. Qb5 {[%emt 0:01:35]} Be4 {[%emt 0:05:17]} 29. Qb3+ {[%emt 0:02:08]} Bd5 {[%emt 0:01:06]} 30. Qb4 {[%emt 0:00:22]} Bf8 {[%emt 0:00:17]} 31. Ra1 {[%emt 0:00:52]} Ra6 {[%emt 0:02:34]} 32. Rxa6 {[%emt 0:00:50]} Qxa6 {[%emt 0:00:06]} 33. Rd1 {[%emt 0:00:40]} Rd6 $1 {[%emt 0:03:43]} 34. Bf1 $36 {[%emt 0:02:05][%mdl 2048] White has good play.} Qc6 {[%emt 0:01:24] [#]} (34... Qa8 $1 $11 {remains equal.}) 35. Rxd5 $1 $16 {[%emt 0:01:14][%mdl 512]} Rxd5 {[%emt 0:00:16]} (35... Qxd5 $2 36. Bc4 Kg7 37. Bxd5 $18) 36. Qc4 $1 {[%emt 0:00:08]} ({But not} 36. Bc4 $6 e6 37. Bxd5 Bxb4 $11) 36... Qxc4 {[%emt 0:01:25]} (36... Qe6 $2 37. e4 Rd6 38. Qxe6+ Rxe6 39. Bc4 $18) 37. Bxc4 {[%emt 0:00:04]} e6 {[%emt 0:00:07] White must now prevent ...Rd1+.} 38. Bxd5 {[%emt 0:00:02]} ({Not} 38. Bxf6 Rd6 $17) 38... exd5 {[%emt 0:00:06]} 39. Bxf6 {[%emt 0:00:02][%mdl 4096] Endgame KB-KB} Kf7 {[%emt 0:00:06]} 40. Bd4 {[%emt 0:00:04]} h5 {[%emt 0:00:32]} 41. h3 {[%emt 0:00:27]} Ke6 {[%emt 0:00:21]} 42. Kg2 {[%emt 0:00:19]} Kf5 {[%emt 0:00:45]} 43. Kf3 {[%emt 0:00:11]} Bd6 {[%emt 0:00:18]} 44. Bb6 {[%emt 0:01:19]} Be5 {[%emt 0:01:04]} 45. Bc5 {[%emt 0:02:03]} Bc7 {[%emt 0:00:09]} 46. Bb4 {[%emt 0:00:02]} Bb8 {[%emt 0:00:15]} 47. Bc3 {[%emt 0:00:01]} Bc7 {[%emt 0:00:08]} 48. Bb2 {[%emt 0:00:02]} Bb8 {[%emt 0:00:08]} 49. Ba1 {[%emt 0:00:01]} Bc7 {[%emt 0:00:08]} 50. Bc3 {[%emt 0:00:01]} Bb8 {[%emt 0:00:07]} 51. Bd2 {[%emt 0:00:01]} Bc7 {[%emt 0:00:08]} 52. Be1 {[%emt 0:00:01]} (52. g4+ $16 Ke6 53. Ke2) 52... Bb8 {[%emt 0:00:07]} (52... Ke5 $1 $14 {deserves consideration.}) 53. Bb4 {[%emt 0:01:55]} Bc7 {[%emt 0:00:14]} 54. Bf8 {[%emt 0:00:02]} Bb8 {[%emt 0:00:18]} 55. Bh6 {[%emt 0:00:06]} Bd6 {[%emt 0:00:48]} 56. Bf4 {[%emt 0:00:13]} Bf8 {[%emt 0:01:03]} 57. g4+ {[%emt 0:02:10]} hxg4+ {[%emt 0:00:07]} 58. hxg4+ {[%emt 0:00:01]} Ke6 {[%emt 0:00:09]} 59. Ke2 {[%emt 0:00:11]} Be7 {[%emt 0:01:59]} 60. Kd3 $1 {[%emt 0:00:03]} Bc5 {[%emt 0:00:13]} 61. Bc7 {[%emt 0:00:13]} Ba7 {[%emt 0:02:20]} 62. Kc3 {[%emt 0:00:33]} Bc5 {[%emt 0:00:38]} 63. Kb3 {[%emt 0:00:16]} Kf6 {[%emt 0:01:22] [#]} 64. Bf4 $1 {[%emt 0:01:02]} Ke6 {[%emt 0:00:13]} 65. Bh6 {[%emt 0:00:37]} Ke5 {[%emt 0:00:48] [#]} 66. f3 $1 {[%emt 0:00:58]} Be7 {[%emt 0:01:47]} 67. Bg7+ {[%emt 0:00:12]} Ke6 {[%emt 0:00:11]} 68. Ka4 {[%emt 0:00:23]} Bc5 {[%emt 0:00:49]} 69. Bd4 {[%emt 0:00:09]} Bd6 {[%emt 0:00:14]} 70. Kb5 {[%emt 0:00:04]} Kd7 {[%emt 0:00:52]} 71. f4 {[%emt 0:00:20]} Ba3 {[%emt 0:01:05]} 72. Bb6 {[%emt 0:02:07]} Kd6 {[%emt 0:00:23]} 73. Ba5 {[%emt 0:00:48]} (73. Ba7 $16) 73... Bc1 {[%emt 0:01:00]} (73... d4 $1 $14) 74. Bb4+ {[%emt 0:00:03]} Kd7 {[%emt 0:00:14]} 75. Bc5 {[%emt 0:00:03]} Bd2 {[%emt 0:00:30]} 76. Bd4 {[%emt 0:02:02]} Kd6 {[%emt 0:00:10]} 77. f5 {[%emt 0:00:59]} (77. Ka4 $16) 77... gxf5 $11 {[%emt 0:00:06] The position is equal.} 78. gxf5 {[%emt 0:00:02]} Bxe3 {[%emt 0:00:36]} 79. Bxe3 {[%emt 0:00:39] White wants to mate with Bd4.} Ke5 {Against Bd4+. White really could win this.  Weighted Error Value: White=0.07 (flawless) /Black=0.15 (very precise)} 1/2-1/2

[Event "ESP-ch Teams Primera 2022"]
[Site "Sanxenxo Pontevedra"]
[Date "2022.09.22"]
[Round "6.10"]
[White "Garcia Cuenca, Victor"]
[Black "Gomez Dieguez, David"]
[Result "0-1"]
[ECO "E43"]
[WhiteElo "2369"]
[BlackElo "2332"]
[Annotator "TA"]
[PlyCount "100"]
[EventDate "2022.09.17"]
[EventType "team-tourn"]
[EventCountry "ESP"]
[SourceTitle "playchess.com"]
[Source "ChessBase"]
[SourceQuality "1"]
[TimeControl "5400+30"]

{[%evp 17,100,29,33,39,33,6,9,16,12,0,0,-121,-124,-112,-109,-233,-224,-204,-208,-194,-181,-202,1,-101,-125,-110,-108,-251,-146,-154,-150,-210,-188,-175,-179,-181,-191,-362,-341,-362,-370,-363,-257,-271,-286,-734,-716,-635,-432,-785,-398,-1010,-979,-941,-908,-910,-962,-989,-981,-806,-776,-29976,-29977,-29981,-29982,-29984,-29985,-29985,-29986,-29986,-29987,-29987,-29988,-29992,-29993,-29993,-29994,-29994,-29995,-29995,-29996,-29997,-29998,-29998,-29999]} 1. d4 Nf6 2. c4 e6 3. Nc3 Bb4 4. e3 b6 5. Bd3 Bb7 6. Nf3 Bxc3+ 7. bxc3 O-O 8. O-O d6 9. Nd2 c5 10. e4 {E43: Nimzo-Indian: Rubinstein: 4...b6.} Nc6 11. d5 Ne5 12. Be2 {The position is equal.} Qe7 13. f4 Ng6 {[%cal Re6d5]} 14. Bd3 (14. Qe1 $11 {keeps the balance.}) 14... exd5 $17 15. cxd5 Nxd5 16. Nc4 (16. exd5 $17 Qe3+ 17. Rf2 Qxd3 18. c4) 16... Nxc3 $19 {[#]} 17. Qc2 $146 ({Predecessor:} 17. Qe1 Nxe4 18. f5 Ne5 19. Bxe4 Nxc4 20. Bxb7 Qxb7 21. f6 Rfe8 22. Qg3 g6 23. Qh4 {0-1 (34) Ben Artzi,I (2408)-Hovhannisyan,R (2592) Jerusalem 2015}) 17... Nxe4 18. f5 Nh8 19. f6 gxf6 ({Better is} 19... Nxf6 $19 {...Ng6 is the strong threat.} 20. Bb2 Ng6) 20. Bh6 {[#]} (20. Ne3 $11) 20... Rfe8 $1 $17 21. Ne3 Ng6 22. Bc4 {Inhibits d5.} (22. Rae1 $17 {is a better defense.} Qe6 23. Nf5) 22... Rac8 (22... Qd7 $19 {And now ...Re5 would win.} 23. Nd5 f5) 23. Rae1 Qd7 {Inhibits Ng4.} 24. Bd5 {This bishop pair is nice.} (24. h3 $17 d5 25. Bd3) 24... Re5 25. Bxb7 Qxb7 26. Ng4 {Strongly threatening Rxe4.} d5 27. Nxe5 (27. Rxe4 dxe4 28. Nxf6+ Kh8 29. Bd2) 27... fxe5 $19 ({Don't blunder} 27... Nxe5 $2 28. Qd1 $19) 28. Qd3 c4 29. Qf3 {[%cal Oe1e4]} Qe7 {White must now prevent ...c3.} 30. h4 {[#]} Qe6 $1 31. h5 (31. Rxe4 dxe4 32. Qxe4) 31... Nh4 {[%csl LRf3,LRh6]} 32. Qd1 f5 {[%cal Bf7f5,Bf5f4][%mdl 32]} 33. g3 (33. Rxe4 $142 dxe4 34. Bg5 Nxg2 35. Kxg2) 33... Nxg3 ({Inferior is} 33... Qxh6 34. Qxd5+ Kh8 35. Qxe5+ Qg7 36. Qxg7+ Kxg7 37. gxh4 $17) 34. Bg5 $2 (34. Rf4 Kh8 35. Rxh4) 34... Nxf1 35. Bxh4 {[#]} c3 $1 36. Kxf1 (36. Rxf1 Rc4) 36... c2 37. Qd2 f4 {Hoping for ...Qh3+.} 38. Qg2+ Kf7 39. h6 c1=Q {Black mates.} 40. Qg7+ Ke8 41. Rxc1 Qh3+ 42. Kf2 Qxh4+ {KQR-KQR} 43. Kg2 f3+ 44. Kxf3 Qf4+ 45. Ke2 Rxc1 46. Qh8+ Kd7 47. Qxh7+ Kd6 48. Qg6+ Kc5 49. h7 Qf1+ 50. Ke3 d4+ {Weighted Error Value: White=0.75/Black=0.34} 0-1

[Event "ESP-ch Teams Primera 2022"]
[Site "Sanxenxo Pontevedra"]
[Date "2022.09.22"]
[Round "6.11"]
[White "Gomez Carreno, Martin"]
[Black "Guadamuro Torrente, Anabel"]
[Result "1/2-1/2"]
[ECO "C67"]
[WhiteElo "2155"]
[BlackElo "2102"]
[Annotator "TA"]
[PlyCount "109"]
[EventDate "2022.09.17"]
[EventType "team-tourn"]
[EventCountry "ESP"]
[SourceTitle "playchess.com"]
[Source "ChessBase"]
[SourceQuality "1"]
[TimeControl "5400+30"]

{[%evp 18,109,19,19,30,30,25,26,35,32,40,49,39,43,44,31,83,99,87,43,105,105,90,73,122,113,218,213,201,204,251,66,68,62,67,62,98,20,38,15,49,0,0,-12,66,49,43,24,27,4,8,0,0,0,0,0,9,8,12,10,72,39,150,58,149,147,154,152,155,14,14,0,7,0,8,8,14,14,14,8,14,14,69,8,8,8,10,3,0,0,0,0,0,0]} 1. e4 e5 2. Nf3 Nc6 3. Bb5 Nf6 4. O-O Nxe4 5. Re1 Nd6 6. Nxe5 Be7 7. Bf1 Nxe5 8. Rxe5 O-O 9. d4 Bf6 10. Re1 b6 {C67: Ruy Lopez: Berlin Defence: 4 0-0 Nxe4.} 11. Bf4 Nf5 12. c3 {[#]} Bb7 $146 {White has an edge.} ({Predecessor:} 12... d5 13. Nd2 Nh4 14. h3 c6 15. Be5 Bxe5 16. Rxe5 Qf6 17. g3 Ng6 18. Re3 Bd7 {1-0 (98) Papp,G (2582)-Sipos,I (2473) Budapest 2019}) 13. Nd2 {[%cal Bb1d2,Bd2f1,Bf1h2,Bh2f3,Bf3e5][%mdl 32]} d5 14. Bd3 Nd6 15. Qf3 g6 16. Nf1 Bg7 (16... Bg5 $14) 17. Qg3 $16 Ne8 18. h4 {[%cal Oh4h5,Bh2h4,Bh4g5][%mdl 32] White has more active pieces. The black rooks are badly placed.} h5 (18... c5 $14) 19. Nh2 c5 20. Bg5 Bf6 (20... Qb8 $142) 21. Nf3 $1 Nd6 (21... Bxg5 $16 22. Nxg5 (22. Qxg5 Qxg5 23. hxg5 Nd6 $11) (22. hxg5 Nd6 $14) 22... Ng7) 22. Ne5 {Bxf6 is the strong threat.} Bxg5 23. hxg5 cxd4 {[#]} 24. cxd4 (24. Nxg6 $1 $18 {[%mdl 512]} fxg6 25. Re6) 24... Ne4 $14 25. Bxe4 dxe4 26. d5 e3 27. Rxe3 (27. Rad1 $1 $16) 27... Qxd5 $11 28. Rd3 (28. b3 $5 {[%cal Re3d3]}) 28... h4 $1 {[%cal Bh5h4,Bh4g3][%mdl 32]} 29. Rxd5 (29. Qh2 $1 $14 Qe4 30. Rad1) 29... hxg3 30. Rd7 Rfe8 ({Black should try} 30... Bc8 $11 31. Rc7 gxf2+ 32. Kxf2 Be6) 31. Ng4 ({But not} 31. Rxf7 $2 Bd5 32. Rf6 gxf2+ 33. Kxf2 Rxe5 $19) 31... Bc6 32. Nh6+ Kh8 33. Rxf7 Re2 34. fxg3 Rxg2+ 35. Kf1 {Threatens to win with Rc1.} Rxg3 (35... Rh2 $5 36. Re1 $8 Bd5 $11) 36. Re1 Rf3+ (36... Rxg5 $2 37. Ree7 Rf5+ 38. Nxf5 gxf5 39. Rxa7 $18) 37. Rxf3 Bxf3 {[%mdl 4096] Endgame KRB-KRN} 38. Re7 Bd5 (38... Bh5 $11) 39. a3 (39. b3 $5 {[%cal Rh6g4]}) 39... Rc8 {[#]} ({Black should play} 39... Bb3 $14) 40. Rxa7 (40. Ng4 $1 $16 {[%cal Rg4f6]}) 40... Rc1+ (40... Rc5 $14) 41. Kf2 $16 {aiming for Ng4.} Rc2+ 42. Ke3 Rxb2 {[#]} 43. Kd4 (43. Ng4 $1 $16 {[%cal Rg4f6] Hoping for Nf6.} Bb3 44. Kd4 (44. Ne5 Bc2 $14)) 43... Bf3 44. Rf7 Bh5 45. Ra7 Ra2 46. Kd5 Bf3+ 47. Ke6 Bh5 48. Kd6 Rc2 49. Ke7 Re2+ (49... Rf2 $11) 50. Kf6 (50. Kf8 $1 $14 Rf2+ 51. Nf7+ Kh7 52. Ke7) 50... Rf2+ $11 {The position is equal.} 51. Ke5 b5 52. Kd4 Rg2 53. Kc3 Be2 54. Re7 Bd1 55. Rb7 {Weighted Error Value: White=0.25 (precise) /Black=0.23 (precise)} 1/2-1/2